bitfinex-derivatives/quotes_BTCF0:USTF0_20250922
["timestamp","ask_amount","ask_price","bid_price","bid_amount"]
[1758573468181,0.13305872,112670.0,112660.0,1.35590897]
[1758573469486,0.13305872,112670.0,112660.0,0.96628542]
[1758573469678,0.13305872,112670.0,112660.0,1.35590897]
[1758573470180,0.04436832,112670.0,112660.0,0.96628542]
[1758573470375,0.13305872,112670.0,112660.0,0.96628542]
[1758573470579,0.13305872,112670.0,112660.0,1.35590897]
[1758573472387,0.14612872,112670.0,112660.0,1.30590897]
[1758573473688,0.14612872,112670.0,112660.0,1.29856185]
[1758573474688,0.14612872,112670.0,112660.0,0.9300883]
[1758573474891,0.43853269,112670.0,112660.0,1.22249227]
[1758573475291,0.43853269,112670.0,112660.0,0.9300883]
[1758573475492,0.43853269,112670.0,112660.0,1.22249227]
[1758573475694,0.79933269,112670.0,112660.0,1.13379397]
[1758573476295,0.79933269,112670.0,112660.0,0.84139]
[1758573476592,0.79933269,112670.0,112660.0,1.13379397]
[1758573477196,0.79933269,112670.0,112660.0,0.31367397]
[1758573477493,0.79933269,112670.0,112660.0,1.13379397]
[1758573478288,0.79933269,112670.0,112660.0,1.22245227]
[1758573478488,0.79933269,112670.0,112660.0,0.31367397]
[1758573478682,0.79933269,112670.0,112660.0,0.02127]
[1758573478892,0.79933269,112670.0,112660.0,0.84135]
[1758573479494,0.79933269,112670.0,112660.0,0.02127]
[1758573479686,0.79933269,112670.0,112660.0,0.84135]
[1758573479887,0.79933269,112670.0,112650.0,0.1119358]
[1758573479888,0.1240383,112660.0,112650.0,0.1119358]
[1758573480088,0.79826059,112660.0,112650.0,1.22431977]
[1758573480493,0.79826059,112660.0,112650.0,0.40423977]
[1758573480694,0.79826059,112660.0,112650.0,1.22431977]
[1758573481194,0.79826059,112660.0,112650.0,1.22731977]
[1758573481597,0.50585662,112660.0,112650.0,1.22731977]
[1758573482594,0.50585662,112660.0,112650.0,1.23231977]
[1758573482796,0.79826059,112660.0,112650.0,1.23232017]
[1758573483990,0.79826059,112660.0,112650.0,0.41224017]
[1758573484191,0.79826059,112660.0,112650.0,1.23228017]
[1758573484396,0.79826059,112660.0,112650.0,0.9398762]
[1758573484598,0.79826059,112660.0,112650.0,1.23228017]
[1758573485004,0.79826059,112660.0,112650.0,0.41224017]
[1758573485297,0.79826059,112660.0,112650.0,1.23228017]
[1758573485900,0.50585662,112660.0,112650.0,0.41224017]
[1758573486100,0.79826059,112660.0,112650.0,0.41224017]
[1758573486295,0.79826059,112660.0,112650.0,1.23228017]
[1758573487106,0.79826059,112660.0,112650.0,1.14357397]
[1758573487307,0.79826059,112660.0,112650.0,0.85117]
[1758573487596,0.79826059,112660.0,112650.0,1.14357397]
[1758573488300,0.79826059,112660.0,112650.0,0.32353397]
[1758573488502,0.79826059,112660.0,112650.0,1.14357397]
[1758573489001,0.79826059,112660.0,112650.0,1.23228017]
[1758573489401,0.79826059,112660.0,112650.0,1.22928017]
[1758573489794,0.79826059,112660.0,112650.0,0.9368762]
[1758573489995,0.79826059,112660.0,112650.0,1.22928017]
[1758573490501,0.79826059,112660.0,112650.0,1.22628017]
[1758573490702,0.79826059,112660.0,112650.0,1.22728017]
[1758573491202,0.43746059,112660.0,112650.0,1.22728017]
[1758573491600,0.13145662,112660.0,112650.0,1.23095017]
[1758573492495,0.04275832,112660.0,112650.0,1.52335414]
[1758573492695,0.02101832,112660.0,112650.0,1.23095017]
[1758573492904,0.81918635,112670.0,112660.0,0.1118283]
[1758573493095,0.45838635,112670.0,112660.0,0.40423227]
[1758573493593,0.81918635,112670.0,112660.0,0.31553397]
[1758573494603,0.81918635,112670.0,112660.0,0.84309]
[1758573495103,0.797858,112670.0,112660.0,0.84309]
[1758573495299,0.82118707,112670.0,112660.0,0.84309]
[1758573495699,0.5287831,112670.0,112660.0,0.84309]
[1758573495996,0.82118707,112670.0,112660.0,0.84309]
[1758573498306,0.82118707,112670.0,112660.0,1.13549397]
[1758573500108,0.5287831,112670.0,112660.0,1.13549397]
[1758573500304,0.82118707,112670.0,112660.0,1.13549397]
[1758573501200,0.82118707,112670.0,112660.0,1.22419227]
[1758573502311,0.82118707,112670.0,112660.0,1.13549397]
[1758573503301,0.5287831,112670.0,112660.0,1.13549397]
[1758573503502,0.82118707,112670.0,112660.0,1.13549397]
[1758573504400,0.1679831,112670.0,112660.0,1.52353624]
[1758573505210,0.1671831,112670.0,112660.0,1.52353624]
[1758573505411,0.1675831,112670.0,112660.0,1.52353624]
[1758573506608,0.1675831,112670.0,112660.0,1.88433624]
[1758573507307,0.1675831,112670.0,112660.0,1.06437624]
[1758573507912,0.1675831,112670.0,112660.0,1.88417624]
[1758573508213,0.1675831,112670.0,112660.0,1.52337624]
[1758573511713,0.1675831,112670.0,112660.0,0.70357624]
[1758573511914,0.1675831,112670.0,112660.0,1.52333624]
[1758573514815,0.1675831,112670.0,112660.0,0.02313]
[1758573515019,0.45998707,112670.0,112660.0,1.13521397]
[1758573515220,0.1675831,112670.0,112660.0,1.13521397]
[1758573515418,0.45998707,112670.0,112660.0,1.13521397]
[1758573515920,0.45998707,112670.0,112660.0,1.22391217]
[1758573520524,0.45998707,112670.0,112660.0,1.22383217]
[1758573520821,0.45998707,112670.0,112660.0,0.40423217]
[1758573521420,0.45998707,112670.0,112660.0,1.22383217]
[1758573522625,0.1675831,112670.0,112660.0,1.22383217]
[1758573522823,0.1675831,112670.0,112660.0,1.51623614]
[1758573523134,0.45998707,112670.0,112660.0,1.51623614]
[1758573524532,0.0658179,112670.0,112660.0,1.52317614]
[1758573524726,0.0654179,112670.0,112660.0,1.88397614]
[1758573524925,0.0658179,112670.0,112660.0,1.88397614]
[1758573525535,0.0658179,112670.0,112660.0,2.13397614]
[1758573525536,0.02372907,112670.0,112660.0,2.13397614]
[1758573526038,0.02372907,112670.0,112660.0,2.15604302]
[1758573526240,0.02332907,112670.0,112660.0,2.15604302]
[1758573526540,0.02372907,112670.0,112660.0,2.15604302]
[1758573526736,0.02332907,112670.0,112660.0,2.15704302]
[1758573526939,0.0024,112670.0,112660.0,2.79944699]
[1758573527246,0.02101954,112690.0,112680.0,0.1218025]
[1758573527541,0.0430965,112690.0,112680.0,1.88693044]
[1758573528343,0.0430965,112690.0,112680.0,1.88893044]
[1758573530141,0.1317712,112690.0,112680.0,1.88993044]
[1758573530642,0.0422965,112690.0,112680.0,1.88993044]
[1758573530836,0.0426965,112690.0,112680.0,1.88993044]
[1758573531442,0.1313712,112690.0,112680.0,1.07041044]
[1758573531641,0.1313712,112690.0,112680.0,1.88981044]
[1758573533146,0.0426965,112690.0,112680.0,1.88981044]
[1758573534544,0.0426965,112690.0,112680.0,1.69469252]
[1758573538051,0.0426965,112690.0,112680.0,1.94453252]
[1758573538240,0.0422965,112690.0,112680.0,1.94449252]
[1758573538446,0.0426965,112690.0,112680.0,1.94449252]
[1758573540652,0.0426965,112690.0,112680.0,1.12529252]
[1758573540947,0.0426965,112690.0,112680.0,1.94441252]
[1758573541247,0.02141954,112690.0,112680.0,1.94441252]
[1758573542350,0.02141954,112690.0,112680.0,1.51498254]
[1758573542652,0.02141954,112690.0,112680.0,1.94437252]
[1758573542950,0.02141954,112690.0,112680.0,1.12529252]
[1758573543151,0.02141954,112690.0,112680.0,1.94437252]
[1758573543650,0.02141954,112690.0,112680.0,1.94433252]
[1758573544045,0.02133954,112690.0,112680.0,1.94433252]
[1758573544646,0.02133954,112690.0,112680.0,1.12529252]
[1758573544954,0.02133954,112690.0,112680.0,1.94433252]
[1758573549448,0.02133954,112690.0,112680.0,1.94421252]
[1758573550550,0.02133954,112690.0,112680.0,2.33390254]
[1758573550751,0.02093954,112690.0,112680.0,2.33390254]
[1758573550950,0.02133954,112690.0,112680.0,2.33390254]
[1758573552155,0.02093954,112690.0,112680.0,2.61390254]
[1758573552356,0.02133954,112690.0,112680.0,2.61390254]
[1758573554160,0.0004,112690.0,112680.0,2.61390254]
[1758573555160,0.0004,112690.0,112680.0,1.79498254]
[1758573555356,0.0004,112690.0,112680.0,2.61374254]
[1758573557950,0.0004,112690.0,112680.0,1.79498254]
[1758573558151,0.0004,112690.0,112680.0,2.61370254]
[1758573558863,0.0004,112690.0,112680.0,1.79498254]
[1758573559064,0.0004,112690.0,112680.0,2.61366254]
[1758573559962,0.0004,112690.0,112680.0,2.61362254]
[1758573560162,0.0004,112690.0,112680.0,1.8342425]
[1758573560460,0.05671387,112690.0,112680.0,1.3042425]
[1758573560958,0.04321387,112690.0,112680.0,1.69393252]
[1758573561161,0.04321387,112690.0,112680.0,1.3042425]
[1758573561363,0.04321387,112690.0,112680.0,0.87529252]
[1758573561564,0.04321387,112690.0,112680.0,1.69449252]
[1758573561862,0.04321387,112690.0,112680.0,0.87529252]
[1758573562268,0.04321387,112690.0,112680.0,1.69457252]
[1758573563361,0.04321387,112690.0,112680.0,0.87529252]
[1758573563566,1.14587859,112690.0,112680.0,0.84479]
[1758573563762,0.75618857,112690.0,112680.0,0.02571]
[1758573563962,1.14587859,112690.0,112680.0,0.02571]
[1758573564262,1.14587859,112690.0,112680.0,0.84483]
[1758573564464,1.16622498,112690.0,112680.0,0.84483]
[1758573564859,0.77653496,112690.0,112680.0,0.84483]
[1758573565055,1.16622498,112690.0,112680.0,0.84483]
[1758573565563,1.16622498,112690.0,112680.0,0.02571]
[1758573565763,1.16622498,112690.0,112680.0,0.84487]
[1758573566557,1.16622498,112690.0,112680.0,0.82216]
[1758573567461,1.16622498,112690.0,112680.0,0.003]
[1758573567858,1.16622498,112690.0,112680.0,0.51656]
[1758573568255,1.16622498,112690.0,112680.0,0.003]
[1758573569476,1.19805409,112690.0,112680.0,0.003]
[1758573570470,0.1237828,112680.0,112670.0,0.13406]
[1758573570670,0.89551669,112680.0,112670.0,0.13396]
[1758573571665,0.96615232,112680.0,112670.0,0.13396]
[1758573573275,0.97615232,112680.0,112670.0,0.13396]
[1758573574081,1.22615232,112680.0,112670.0,0.13396]
[1758573579375,0.97615232,112680.0,112670.0,0.13396]
[1758573580175,0.5864623,112680.0,112670.0,0.15624]
[1758573580475,0.97615232,112680.0,112670.0,0.15624]
[1758573587779,0.5864623,112680.0,112670.0,0.15624]
[1758573587979,0.97615232,112680.0,112670.0,0.15624]
[1758573590780,0.97615232,112680.0,112670.0,0.13396]
[1758573591280,0.97615232,112680.0,112670.0,0.15624]
[1758573592574,0.0886905,112670.0,112660.0,0.0001]
[1758573592779,0.50583437,112670.0,112660.0,0.02228]
[1758573593080,0.50583437,112670.0,112660.0,0.1109783]
[1758573593778,0.51083437,112670.0,112660.0,0.1109783]
[1758573593978,0.51083437,112670.0,112660.0,0.02228]
[1758573594981,0.52950888,112670.0,112660.0,0.02228]
[1758573596780,0.52950888,112670.0,112660.0,0.31471117]
[1758573596781,0.82194005,112670.0,112660.0,0.31471117]
[1758573598276,0.82194005,112670.0,112660.0,0.02228]
[1758573599079,0.1239184,112660.0,112650.0,0.85944047]
[1758573599382,1.09082461,112660.0,112650.0,0.85934047]
[1758573599583,1.09082461,112660.0,112650.0,0.02259]
[1758573599981,1.09082461,112660.0,112650.0,0.84143]
[1758573600177,1.09082461,112660.0,112650.0,0.84243]
[1758573601576,1.09182461,112660.0,112650.0,0.84243]
[1758573602178,0.79939344,112660.0,112650.0,0.84243]
[1758573603984,0.79939344,112660.0,112650.0,1.13486117]
[1758573604482,0.79939344,112660.0,112650.0,0.84243]
[1758573604682,0.79939344,112660.0,112650.0,1.13486117]
[1758573604874,0.82041564,112660.0,112650.0,1.13486117]
[1758573610886,0.45961564,112660.0,112650.0,1.13486117]
[1758573611884,0.16718447,112660.0,112650.0,1.13486117]
[1758573612088,0.82041564,112660.0,112650.0,0.84243]
[1758573612391,0.82041564,112660.0,112650.0,1.13486117]
[1758573612885,0.82041564,112660.0,112650.0,0.02359]
[1758573613090,1.11284681,112660.0,112650.0,0.77171]
[1758573614487,0.82041564,112660.0,112650.0,1.06414117]
[1758573615982,0.52798447,112660.0,112650.0,1.06414117]
[1758573616183,0.82041564,112660.0,112650.0,1.06414117]
[1758573621590,0.82041564,112660.0,112650.0,1.04414117]
[1758573626297,0.55981358,112660.0,112650.0,1.04414117]
[1758573626488,0.49144475,112660.0,112650.0,1.13284977]
[1758573626685,0.45961564,112660.0,112650.0,1.13284977]
[1758573628294,0.49144475,112660.0,112650.0,1.13284977]
[1758573630597,0.19901358,112660.0,112650.0,1.13284977]
[1758573631396,0.16718447,112660.0,112650.0,1.13284977]
[1758573631598,0.16758447,112660.0,112650.0,1.13284977]
[1758573632098,0.16758447,112660.0,112650.0,1.04414117]
[1758573632294,0.46001564,112660.0,112650.0,1.11474117]
[1758573632696,0.46001564,112660.0,112650.0,0.82231]
[1758573632896,0.46001564,112660.0,112650.0,1.20344977]
[1758573633500,0.46001564,112660.0,112650.0,0.38472977]
[1758573633703,0.46001564,112660.0,112650.0,1.20340977]
[1758573633995,0.46001564,112660.0,112650.0,1.20336977]
[1758573640414,0.82081564,112660.0,112650.0,1.20336977]
[1758573641513,0.52838447,112660.0,112650.0,1.20336977]
[1758573641814,0.82081564,112660.0,112650.0,1.20336977]
[1758573642709,0.52838447,112660.0,112650.0,1.20336977]
[1758573642914,0.82081564,112660.0,112650.0,1.20336977]
[1758573646318,0.46001564,112660.0,112650.0,1.20336977]
[1758573646907,0.46001564,112660.0,112650.0,1.56416977]
[1758573647106,0.46001564,112660.0,112650.0,1.20336977]
[1758573654827,0.16758447,112660.0,112650.0,1.20336977]
[1758573655023,0.16758447,112660.0,112650.0,1.56416977]
[1758573656631,0.16758447,112660.0,112650.0,1.66165545]
[1758573656932,0.16758447,112660.0,112650.0,1.2717386]
[1758573657230,0.16758447,112660.0,112650.0,1.66165545]
[1758573659632,0.04326607,112660.0,112650.0,1.66165545]
[1758573660134,0.04326607,112660.0,112650.0,1.67836035]
[1758573660334,0.04366607,112660.0,112650.0,1.67836035]
[1758573660633,0.04326607,112660.0,112650.0,1.67836035]
[1758573660934,0.04366607,112660.0,112650.0,1.67836035]
[1758573661135,0.04366607,112660.0,112650.0,1.67792035]
[1758573663729,0.13236677,112660.0,112650.0,1.67784035]
[1758573664440,0.13236677,112660.0,112650.0,0.85972035]
[1758573664934,0.13236677,112660.0,112650.0,1.67780035]
[1758573668129,0.13236677,112660.0,112650.0,1.66105545]
[1758573669641,0.04366607,112660.0,112650.0,1.66105545]
[1758573670339,0.13236677,112660.0,112650.0,0.84301545]
[1758573670539,0.13236677,112660.0,112650.0,1.66097545]
[1758573670933,0.13236677,112660.0,112650.0,1.2710586]
[1758573671132,0.13236677,112660.0,112650.0,1.66097545]
[1758573672635,0.13236677,112660.0,112650.0,1.67635937]
[1758573672842,0.13236677,112660.0,112650.0,0.84301545]
[1758573673044,0.13236677,112660.0,112650.0,1.66093545]
[1758573673442,0.16659677,112660.0,112650.0,0.84301545]
[1758573673743,0.16659677,112660.0,112650.0,0.9101786]
[1758573674642,0.16659677,112660.0,112650.0,0.82147]
[1758573674841,0.16659677,112660.0,112650.0,1.21138685]
[1758573675148,0.16659677,112660.0,112650.0,0.82147]
[1758573676240,0.16659677,112660.0,112650.0,0.00359]
[1758573676439,0.16659677,112660.0,112650.0,0.82143]
[1758573677343,0.16659677,112660.0,112650.0,0.00359]
[1758573677543,0.52739677,112660.0,112650.0,0.82139]
[1758573677742,0.52739677,112660.0,112650.0,0.00359]
[1758573678245,0.52739677,112660.0,112650.0,0.82139]
[1758573681346,0.52739677,112660.0,112650.0,0.00359]
[1758573681650,1.16731362,112660.0,112650.0,0.81872]
[1758573682640,1.16731362,112660.0,112650.0,0.001]
[1758573682953,1.16731362,112660.0,112650.0,0.75384]
[1758573683251,1.16731362,112660.0,112650.0,0.001]
[1758573683450,1.16731362,112660.0,112650.0,0.81868]
[1758573686158,0.77739677,112660.0,112650.0,0.83697]
[1758573688557,0.77739677,112660.0,112650.0,0.81868]
[1758573688757,1.16731362,112660.0,112650.0,0.81868]
[1758573688957,1.16731362,112660.0,112650.0,0.001]
[1758573689264,0.77739677,112660.0,112650.0,0.81864]
[1758573689563,1.16731362,112660.0,112650.0,0.81864]
[1758573690160,1.16731362,112660.0,112650.0,0.001]
[1758573690360,1.16731362,112660.0,112650.0,0.8186]
[1758573690867,1.16731362,112660.0,112650.0,0.81856]
[1758573691369,0.77739677,112660.0,112650.0,0.81856]
[1758573691559,1.16731362,112660.0,112650.0,0.81856]
[1758573694872,1.16731362,112660.0,112650.0,0.001]
[1758573699377,0.91731362,112660.0,112650.0,0.001]
[1758573701381,0.94958693,112660.0,112650.0,0.001]
[1758573705376,0.55967008,112660.0,112650.0,0.001]
[1758573705581,0.94958693,112660.0,112650.0,0.01929]
[1758573708980,0.94958693,112660.0,112650.0,0.001]
[1758573709383,0.94958693,112660.0,112650.0,0.01929]
[1758573710178,0.94958693,112660.0,112650.0,0.001]
[1758573710379,0.94958693,112660.0,112650.0,0.01929]
[1758573710885,0.55967008,112660.0,112650.0,0.01929]
[1758573711085,0.94958693,112660.0,112650.0,0.01929]
[1758573714890,0.55967008,112660.0,112650.0,0.01929]
[1758573715091,0.94958693,112660.0,112650.0,0.01929]
[1758573715893,0.55967008,112660.0,112650.0,0.01929]
[1758573716086,0.94958693,112660.0,112650.0,0.01929]
[1758573717591,0.96559824,112660.0,112650.0,0.01929]
[1758573718693,1.16072047,112660.0,112650.0,0.01929]
[1758573719801,0.57568139,112660.0,112650.0,0.01929]
[1758573719989,1.16072047,112660.0,112650.0,0.01929]
[1758573721292,0.55979615,112660.0,112650.0,0.01929]
[1758573721493,1.14483523,112660.0,112650.0,0.001]
[1758573724294,1.14483523,112660.0,112650.0,0.01929]
[1758573724693,1.14483523,112660.0,112650.0,0.001]
[1758573726695,1.12381303,112660.0,112650.0,0.001]
[1758573736310,1.12381303,112660.0,112650.0,0.01929]
[1758573742808,1.17165345,112660.0,112650.0,0.01929]
[1758573745319,1.17165345,112660.0,112650.0,0.001]
[1758573745509,1.12381303,112660.0,112650.0,0.001]
[1758573747717,1.12381303,112660.0,112650.0,0.01929]
[1758573748715,0.53877395,112660.0,112650.0,0.58284582]
[1758573748920,0.53877395,112660.0,112650.0,0.96407406]
[1758573749217,0.50641887,112660.0,112650.0,0.96407406]
[1758573749517,0.50681887,112660.0,112650.0,0.67155452]
[1758573749718,0.50681887,112660.0,112650.0,1.48795452]
[1758573750420,0.41811807,112660.0,112650.0,1.48795452]
[1758573750721,0.03563807,112660.0,112650.0,2.14127406]
[1758573750915,0.02308807,112660.0,112650.0,2.14127406]
[1758573751218,0.02308807,112660.0,112650.0,2.14821406]
[1758573756316,0.0014,112660.0,112650.0,2.14821406]
[1758573756717,0.0014,112660.0,112650.0,2.14797406]
[1758573756916,0.0014,112660.0,112650.0,1.33181406]
[1758573757118,0.0014,112660.0,112650.0,2.14797406]
[1758573758921,0.0014,112660.0,112650.0,1.9343336]
[1758573759116,0.001,112660.0,112650.0,2.7504536]
[1758573759319,0.0014,112660.0,112650.0,2.5004536]
[1758573759622,0.0014,112660.0,112650.0,2.5004136]
[1758573759812,0.0014,112660.0,112650.0,2.7504136]
[1758573760715,0.0014,112660.0,112650.0,4.6201336]
[1758573762624,0.001,112660.0,112650.0,4.6201336]
[1758573762824,0.0014,112660.0,112650.0,4.6201336]
[1758573763024,0.0014,112660.0,112650.0,4.68980173]
[1758573764123,0.0014,112660.0,112650.0,2.00400173]
[1758573764328,0.0014,112660.0,112650.0,4.68952173]
[1758573765330,0.0012,112660.0,112650.0,4.68952173]
[1758573766532,0.02837,112690.0,112680.0,0.111925]
[1758573766733,0.02837,112690.0,112680.0,1.87364408]
[1758573767726,0.04337,112690.0,112680.0,1.87364408]
[1758573768027,0.04314,112690.0,112680.0,1.87364408]
[1758573768227,0.04262,112690.0,112680.0,1.87364408]
[1758573768429,0.03862,112690.0,112680.0,1.87464408]
[1758573768628,0.03862,112690.0,112680.0,1.88872385]
[1758573768835,0.02762,112690.0,112680.0,1.88872385]
[1758573769930,0.40881674,112690.0,112680.0,0.31675954]
[1758573770124,0.7910504,112690.0,112680.0,1.13255954]
[1758573770333,0.7910504,112690.0,112680.0,1.22124464]
[1758573770535,0.4302504,112690.0,112680.0,1.22124464]
[1758573771235,0.4302504,112690.0,112680.0,1.22120464]
[1758573771627,0.4302504,112690.0,112680.0,0.40544464]
[1758573772135,0.4302504,112690.0,112680.0,1.22116464]
[1758573773041,1.0410504,112690.0,112680.0,0.02424]
[1758573773225,1.0410504,112690.0,112680.0,0.81668]
[1758573774337,1.0410504,112690.0,112680.0,0.001]
[1758573774537,1.0410504,112690.0,112680.0,0.61344]
[1758573774932,1.0410504,112690.0,112680.0,0.001]
[1758573775239,0.49853086,112690.0,112680.0,1.51364418]
[1758573775536,0.13773086,112690.0,112680.0,1.87444418]
[1758573775836,0.13813086,112690.0,112680.0,1.87444418]
[1758573776335,0.04945366,112690.0,112680.0,1.87444418]
[1758573776538,0.13813086,112690.0,112680.0,1.2894051]
[1758573776733,0.13813086,112690.0,112680.0,1.87444418]
[1758573776928,0.6826504,112690.0,112680.0,0.31575954]
[1758573777237,1.0434504,112690.0,112680.0,1.13135954]
[1758573777535,0.75393086,112690.0,112680.0,1.13135954]
[1758573777837,1.0454504,112690.0,112680.0,1.13135954]
[1758573778529,0.1242151,112680.0,112670.0,0.02306]
[1758573778732,0.50644876,112680.0,112670.0,0.83856]
[1758573779327,0.50644876,112680.0,112670.0,0.02296]
[1758573779531,0.50644876,112680.0,112670.0,0.83856]
[1758573779731,0.14564876,112680.0,112670.0,0.9272529]
[1758573779932,0.14564876,112680.0,112670.0,1.31808345]
[1758573780232,0.05696366,112680.0,112670.0,1.67888345]
[1758573780434,0.14564876,112680.0,112670.0,0.86328345]
[1758573780635,0.14564876,112680.0,112670.0,1.31804345]
[1758573780837,0.21516342,112680.0,112670.0,1.31804345]
[1758573781241,0.21516342,112680.0,112670.0,0.50248345]
[1758573781441,0.21516342,112680.0,112670.0,1.31804345]
[1758573782744,0.57596342,112680.0,112670.0,0.81656]
[1758573782942,1.21579397,112680.0,112670.0,0.001]
[1758573783236,1.21579397,112680.0,112670.0,0.81652]
[1758573783844,1.21979397,112680.0,112670.0,0.81552]
[1758573784035,0.124223,112670.0,112660.0,0.04407355]
[1758573784235,0.1242308,112660.0,112650.0,0.02113628]
[1758573784535,0.1242308,112660.0,112640.0,0.111775]
[1758573784536,0.1242387,112650.0,112640.0,0.111775]
[1758573784736,0.14567236,112650.0,112640.0,1.53702555]
[1758573784944,0.05696366,112650.0,112640.0,1.53702555]
[1758573785134,0.14567236,112650.0,112640.0,1.08230555]
[1758573785342,0.14567236,112650.0,112640.0,1.89778555]
[1758573786138,0.50647236,112650.0,112640.0,0.24296]
[1758573786337,0.50647236,112650.0,112640.0,0.86844]
[1758573786542,0.50647236,112650.0,112640.0,0.83844]
[1758573786739,0.1021766,112640.0,112630.0,0.02306]
[1758573787042,0.14168026,112640.0,112630.0,0.96848]
[1758573787242,0.14168026,112640.0,112630.0,0.15296]
[1758573787437,0.14168026,112640.0,112630.0,0.02296]
[1758573787640,0.49148026,112640.0,112630.0,0.83848]
[1758573788139,0.1242545,112630.0,112620.0,0.0001]
[1758573788445,0.1242545,112630.0,112620.0,1.04552]
[1758573788945,0.19480796,112630.0,112620.0,1.43535055]
[1758573789146,0.2162811,112630.0,112620.0,1.43535055]
[1758573789338,0.19480796,112630.0,112620.0,1.04552]
[1758573790038,0.96689988,112630.0,112620.0,0.001]
[1758573790232,0.96689988,112630.0,112620.0,0.81652]
[1758573790435,1.21689988,112630.0,112620.0,0.81652]
[1758573790636,1.22089988,112630.0,112620.0,0.81652]
[1758573791345,1.19943851,112630.0,112620.0,0.81656]
[1758573791544,1.22086004,112630.0,112620.0,0.001]
[1758573791744,0.1242623,112620.0,112610.0,0.0001]
[1758573791936,0.1242702,112610.0,112600.0,0.81566]
[1758573792140,0.4850702,112610.0,112600.0,0.81556]
[1758573792445,0.4850702,112610.0,112600.0,0.9043081]
[1758573792640,0.39633,112610.0,112600.0,0.9043081]
[1758573792839,0.39633,112610.0,112600.0,0.9272681]
[1758573793035,0.39633,112610.0,112600.0,0.9322681]
[1758573793441,0.4850702,112610.0,112600.0,0.9093081]
[1758573793639,0.03553,112610.0,112600.0,1.32409865]
[1758573793947,0.01346,112620.0,112610.0,0.0887402]
[1758573794133,0.03633,112620.0,112610.0,0.50153075]
[1758573794338,0.1242623,112620.0,112610.0,0.83856]
[1758573794646,0.1246623,112620.0,112610.0,0.1117002]
[1758573794847,0.1246623,112620.0,112610.0,0.9273402]
[1758573795048,0.87529285,112620.0,112610.0,0.81564]
[1758573795348,1.12529285,112620.0,112610.0,0.81564]
[1758573796047,1.12729285,112620.0,112610.0,0.81564]
[1758573796849,0.1252702,112610.0,112600.0,0.0001]
[1758573797152,0.1252702,112610.0,112590.0,0.83938095]
[1758573797153,0.03653,112600.0,112590.0,0.4496504]
[1758573797448,0.03653,112600.0,112590.0,1.4951904]
[1758573798646,0.4860781,112600.0,112590.0,0.23]
[1758573798948,0.125286,112590.0,112580.0,0.49207862]
[1758573799247,0.125286,112590.0,112580.0,1.92748917]
[1758573799634,0.124286,112590.0,112580.0,1.17685862]
[1758573800043,0.124286,112590.0,112580.0,0.36117862]
[1758573800240,0.124286,112590.0,112580.0,1.17685862]
[1758573800434,0.124286,112590.0,112580.0,1.18185862]
[1758573800635,0.94657424,112590.0,112580.0,0.82068]
[1758573801148,0.94657424,112590.0,112580.0,0.005]
[1758573801450,0.94657424,112590.0,112580.0,0.82068]
[1758573802151,0.55674369,112590.0,112580.0,0.82068]
[1758573802650,0.55674369,112590.0,112580.0,0.005]
[1758573802848,0.55674369,112590.0,112580.0,0.82076]
[1758573803348,0.55674369,112590.0,112580.0,0.0937638]
[1758573803549,0.10818769,112590.0,112580.0,0.9309838]
[1758573803851,0.10818769,112590.0,112580.0,1.68161435]
[1758573804241,0.10858769,112590.0,112580.0,1.68161435]
[1758573804751,0.10818769,112590.0,112580.0,1.68161435]
[1758573805050,0.10858769,112590.0,112580.0,1.68161435]
[1758573806048,0.01408,112590.0,112580.0,1.93161435]
[1758573806245,0.39654,112600.0,112590.0,0.111526]
[1758573806441,0.03654,112600.0,112590.0,0.86215655]
[1758573807351,0.03654,112600.0,112590.0,1.288126]
[1758573807352,0.1252881,112600.0,112590.0,1.288126]
[1758573807546,0.1272881,112600.0,112590.0,1.288126]
[1758573808942,0.123696,112590.0,112580.0,0.0031]
[1758573809145,0.123696,112590.0,112580.0,0.8158]
[1758573809146,0.484496,112590.0,112580.0,0.8158]
[1758573809450,0.1237038,112580.0,112570.0,0.88276941]
[1758573809651,0.1237038,112580.0,112570.0,1.69846941]
[1758573809845,0.03494,112580.0,112570.0,1.69846941]
[1758573810047,0.03294,112580.0,112570.0,1.69846941]
[1758573810743,0.4825039,112580.0,112570.0,0.02550266]
[1758573811140,0.4805039,112580.0,112570.0,0.84130266]
[1758573811546,0.4805039,112580.0,112570.0,0.04827266]
[1758573811746,0.4805039,112580.0,112570.0,0.86407266]
[1758573811947,0.4805039,112580.0,112570.0,0.95684436]
[1758573812647,0.87033445,112580.0,112570.0,0.02950266]
[1758573812853,0.89172983,112580.0,112570.0,0.84530266]
[1758573813549,0.89172983,112580.0,112570.0,0.02950266]
[1758573813750,0.89172983,112580.0,112570.0,0.84534266]
[1758573814153,0.90272983,112580.0,112570.0,0.004]
[1758573814353,0.90572983,112580.0,112570.0,0.8158]
[1758573814553,0.1237117,112570.0,112560.0,0.0888746]
[1758573814750,0.14510708,112570.0,112550.0,0.75073055]
[1758573814955,0.4845196,112560.0,112550.0,0.0001]
[1758573815155,0.50591498,112560.0,112550.0,0.9046275]
[1758573815356,0.05633538,112560.0,112550.0,1.29445805]
[1758573815555,0.05633538,112560.0,112550.0,0.9046275]
[1758573815756,0.05633538,112560.0,112550.0,1.67802805]
[1758573816058,0.03494,112560.0,112550.0,1.92802805]
[1758573816261,0.03534,112560.0,112550.0,1.92802805]
[1758573816654,0.01288,112560.0,112550.0,1.92802805]
[1758573816857,0.01328,112560.0,112550.0,1.92802805]
[1758573817051,0.01628,112560.0,112550.0,1.92802805]
[1758573817253,0.01628,112560.0,112550.0,1.11218805]
[1758573817455,0.01628,112560.0,112550.0,1.92802805]
[1758573817958,0.0034,112560.0,112550.0,1.92802805]
[1758573818153,0.0034,112560.0,112550.0,2.25802805]
[1758573818467,0.01628,112560.0,112550.0,1.67802805]
[1758573819758,0.01628,112560.0,112550.0,0.86218805]
[1758573819759,0.05979607,112560.0,112550.0,0.86218805]
[1758573819954,0.05979607,112560.0,112550.0,0.0887875]
[1758573820151,0.42059607,112560.0,112550.0,0.9046275]
[1758573821161,0.50937567,112560.0,112550.0,0.9046275]
[1758573821363,0.50937567,112560.0,112550.0,0.0887875]
[1758573821558,0.50937567,112560.0,112550.0,0.9046275]
[1758573821762,0.1237276,112550.0,112540.0,0.4496906]
[1758573821956,0.14518367,112550.0,112540.0,1.5654306]
[1758573822264,0.05639607,112550.0,112540.0,1.5654306]
[1758573822468,0.05639607,112550.0,112540.0,1.95526115]
[1758573822863,0.14558367,112550.0,112540.0,1.95526115]
[1758573823066,0.05679607,112550.0,112540.0,1.95626115]
[1758573823263,0.05679607,112550.0,112540.0,1.95826115]
[1758573824763,0.05639607,112550.0,112540.0,1.95826115]